[Event "Titled Tuesday Blitz April 12 Early 2022"]
[White "Alinasab, Mobina"]
[Black "Zhu, Jiner"]
[WhiteFideId "12528897"]
[BlackFideId "8608059"]
[WhiteElo "2031"]
[BlackElo "2281"]
[Result "0-1"]
[Round "04"]
[TimeControl "180+1"]
[Date "2022.04.13"]
[WhiteClock "0:00:00"]
[BlackClock "0:00:39"]

1. e4 {[%clk 0:02:58]}  c5 {[%clk 0:02:59]} 2. Nf3 {[%clk 0:02:56]}  Nc6 {[%clk 0:02:59]} 3. d4 {[%clk 0:02:53]}  cxd4 {[%clk 0:03:00]} 4. Nxd4 {[%clk 0:02:54]}  Nf6 {[%clk 0:03:00]} 5. Nc3 {[%clk 0:02:54]}  e5 {[%clk 0:03:00]} 6. Ndb5 {[%clk 0:02:54]}  d6 {[%clk 0:03:00]} 7. Bg5 {[%clk 0:02:55]}  a6 {[%clk 0:02:59]} 8. Na3 {[%clk 0:02:55]}  b5 {[%clk 0:03:00]} 9. Bxf6 {[%clk 0:02:56]}  gxf6 {[%clk 0:03:00]} 10. Nd5 {[%clk 0:02:55]}  Bg7 {[%clk 0:02:59]} 11. Bd3 {[%clk 0:02:55]}  O-O {[%clk 0:02:59]} 12. Qh5 {[%clk 0:02:53]}  Ne7 {[%clk 0:02:50]} 13. O-O {[%clk 0:02:52]}  f5 {[%clk 0:02:23]} 14. Nxe7+ {[%clk 0:02:40]}  Qxe7 {[%clk 0:02:23]} 15. c4 {[%clk 0:02:22]}  Rb8 {[%clk 0:02:10]} 16. exf5 {[%clk 0:02:15]}  e4 {[%clk 0:02:08]} 17. Rae1 {[%clk 0:02:14]}  Bb7 {[%clk 0:01:33]} 18. cxb5 {[%clk 0:00:18]}  d5 {[%clk 0:01:29]} 19. bxa6 {[%clk 0:00:17]}  Ba8 {[%clk 0:01:28]} 20. Nb1 {[%clk 0:00:07]}  Rxb2 {[%clk 0:01:24]} 21. Re3 {[%clk 0:00:05]}  Qf6 {[%clk 0:01:08]} 22. Be2 {[%clk 0:00:04]}  Rfb8 {[%clk 0:01:08]} 23. Nd2 {[%clk 0:00:03]}  Rxd2 {[%clk 0:01:06]} 24. Rg3 {[%clk 0:00:04]}  Rxa2 {[%clk 0:01:02]} 25. a7 {[%clk 0:00:04]}  Rxa7 {[%clk 0:01:01]} 26. Qg4 {[%clk 0:00:04]}  Kh8 {[%clk 0:01:01]} 27. Qh5 {[%clk 0:00:04]}  Ra1 {[%clk 0:01:00]} 28. h3 {[%clk 0:00:03]}  Rxf1+ {[%clk 0:01:00]} 29. Bxf1 {[%clk 0:00:04]}  d4 {[%clk 0:00:59]} 30. Ra3 {[%clk 0:00:03]}  d3 {[%clk 0:00:56]} 31. g4 {[%clk 0:00:03]}  d2 {[%clk 0:00:53]} 32. Be2 {[%clk 0:00:03]}  Rd8 {[%clk 0:00:52]} 33. Bd1 {[%clk 0:00:03]}  Qb2 {[%clk 0:00:46]} 34. Rb3 {[%clk 0:00:03]}  Qe5 {[%clk 0:00:42]} 35. Kf1 {[%clk 0:00:00]}  Bd5 {[%clk 0:00:39]} 0-1


[Site "https://www.chess.com"]

[Event "Titled Tuesday Blitz April 12 Early 2022"]
[White "Almeida Junior, Alvaro Alves de"]
[Black "Papp, Levente"]
[WhiteFideId "2149974"]
[BlackFideId "751243"]
[WhiteElo "2086"]
[BlackElo "2308"]
[Result "0-1"]
[Round "04"]
[TimeControl "180+1"]
[Date "2022.04.13"]
[WhiteClock "0:00:01"]
[BlackClock "0:00:47"]

1. e4 {[%clk 0:03:00]}  e6 {[%clk 0:03:00]} 2. d4 {[%clk 0:02:57]}  d5 {[%clk 0:02:59]} 3. Nd2 {[%clk 0:02:58]}  Nf6 {[%clk 0:02:58]} 4. e5 {[%clk 0:02:58]}  Nfd7 {[%clk 0:02:59]} 5. Bd3 {[%clk 0:02:58]}  c5 {[%clk 0:03:00]} 6. c3 {[%clk 0:02:59]}  Nc6 {[%clk 0:03:00]} 7. Ne2 {[%clk 0:02:59]}  cxd4 {[%clk 0:03:01]} 8. cxd4 {[%clk 0:03:00]}  f6 {[%clk 0:03:02]} 9. exf6 {[%clk 0:03:00]}  Nxf6 {[%clk 0:03:03]} 10. Nf3 {[%clk 0:03:01]}  Bd6 {[%clk 0:03:04]} 11. O-O {[%clk 0:03:02]}  O-O {[%clk 0:03:04]} 12. g3 {[%clk 0:03:02]}  e5 {[%clk 0:02:59]} 13. dxe5 {[%clk 0:03:00]}  Nxe5 {[%clk 0:03:00]} 14. Nxe5 {[%clk 0:02:56]}  Bxe5 {[%clk 0:03:01]} 15. Bf4 {[%clk 0:02:52]}  Bd6 {[%clk 0:02:45]} 16. Qc2 {[%clk 0:02:17]}  Bg4 {[%clk 0:02:35]} 17. Bxd6 {[%clk 0:01:32]}  Qxd6 {[%clk 0:02:34]} 18. Nd4 {[%clk 0:01:32]}  Rfe8 {[%clk 0:02:13]} 19. Rfe1 {[%clk 0:01:29]}  Qb4 {[%clk 0:02:08]} 20. Qc3 {[%clk 0:01:01]}  Qb6 {[%clk 0:01:57]} 21. Bf5 {[%clk 0:00:49]}  Bxf5 {[%clk 0:00:59]} 22. Nxf5 {[%clk 0:00:44]}  g6 {[%clk 0:00:58]} 23. Nd4 {[%clk 0:00:09]}  Ne4 {[%clk 0:00:51]} 24. Qd3 {[%clk 0:00:04]}  Qxb2 {[%clk 0:00:47]} 25. Qe2 {[%clk 0:00:01]}  Qxd4 {[%clk 0:00:47]} 0-1


[Site "https://www.chess.com"]

[Event "Titled Tuesday Blitz April 12 Early 2022"]
[White "Artemenko, Oleg"]
[Black "Demchenko, Anton"]
[WhiteFideId "14201798"]
[BlackFideId "4160258"]
[WhiteElo "2287"]
[BlackElo "2539"]
[Result "1-0"]
[Round "04"]
[TimeControl "180+1"]
[Date "2022.04.12"]
[WhiteClock "0:00:11"]
[BlackClock "0:00:03"]

1. d4 {[%clk 0:03:00]}  Nf6 {[%clk 0:02:58]} 2. Nc3 {[%clk 0:03:00]}  g6 {[%clk 0:02:59]} 3. e4 {[%clk 0:03:00]}  d6 {[%clk 0:03:00]} 4. f4 {[%clk 0:03:00]}  Bg7 {[%clk 0:02:58]} 5. Bd3 {[%clk 0:03:00]}  O-O {[%clk 0:02:58]} 6. Nf3 {[%clk 0:03:00]}  Na6 {[%clk 0:02:59]} 7. e5 {[%clk 0:02:50]}  Nd7 {[%clk 0:02:59]} 8. Ne4 {[%clk 0:02:47]}  c5 {[%clk 0:02:57]} 9. c3 {[%clk 0:02:46]}  cxd4 {[%clk 0:02:57]} 10. cxd4 {[%clk 0:02:46]}  Nb4 {[%clk 0:02:56]} 11. Bb1 {[%clk 0:02:46]}  Nb6 {[%clk 0:02:38]} 12. a3 {[%clk 0:02:41]}  N4d5 {[%clk 0:02:32]} 13. O-O {[%clk 0:02:41]}  Bd7 {[%clk 0:02:24]} 14. Qe1 {[%clk 0:02:05]}  Rc8 {[%clk 0:02:19]} 15. Qh4 {[%clk 0:01:58]}  f6 {[%clk 0:02:09]} 16. exd6 {[%clk 0:01:50]}  Bf5 {[%clk 0:01:48]} 17. dxe7 {[%clk 0:01:44]}  Qxe7 {[%clk 0:01:49]} 18. Nc5 {[%clk 0:01:42]}  Bxb1 {[%clk 0:01:46]} 19. Rxb1 {[%clk 0:01:43]}  Nc4 {[%clk 0:01:37]} 20. Re1 {[%clk 0:01:41]}  Qf7 {[%clk 0:01:37]} 21. b3 {[%clk 0:01:39]}  Nd6 {[%clk 0:01:35]} 22. Bd2 {[%clk 0:01:30]}  Rfe8 {[%clk 0:01:33]} 23. Rxe8+ {[%clk 0:01:21]}  Rxe8 {[%clk 0:01:33]} 24. Re1 {[%clk 0:01:22]}  b6 {[%clk 0:01:32]} 25. Nd3 {[%clk 0:01:21]}  Ne4 {[%clk 0:01:25]} 26. f5 {[%clk 0:01:15]}  gxf5 {[%clk 0:00:50]} 27. Bh6 {[%clk 0:01:15]}  Ne7 {[%clk 0:00:42]} 28. Bxg7 {[%clk 0:01:12]}  Kxg7 {[%clk 0:00:43]} 29. Nf4 {[%clk 0:01:01]}  Kh8 {[%clk 0:00:39]} 30. Re3 {[%clk 0:00:29]}  Rg8 {[%clk 0:00:37]} 31. h3 {[%clk 0:00:25]}  a5 {[%clk 0:00:25]} 32. Kh2 {[%clk 0:00:21]}  Rc8 {[%clk 0:00:17]} 33. Qe1 {[%clk 0:00:15]}  Ng6 {[%clk 0:00:15]} 34. Nxg6+ {[%clk 0:00:13]}  hxg6 {[%clk 0:00:16]} 35. Nd2 {[%clk 0:00:12]}  Qc7+ {[%clk 0:00:11]} 36. Kh1 {[%clk 0:00:10]}  Nxd2 {[%clk 0:00:11]} 37. Qxd2 {[%clk 0:00:10]}  Qc1+ {[%clk 0:00:11]} 38. Qxc1 {[%clk 0:00:10]}  Rxc1+ {[%clk 0:00:12]} 39. Kh2 {[%clk 0:00:11]}  Rb1 {[%clk 0:00:09]} 40. d5 {[%clk 0:00:07]}  Kg7 {[%clk 0:00:08]} 41. d6 {[%clk 0:00:06]}  Rd1 {[%clk 0:00:08]} 42. Re7+ {[%clk 0:00:06]}  Kh6 {[%clk 0:00:08]} 43. d7 {[%clk 0:00:07]}  Kg5 {[%clk 0:00:06]} 44. Kg3 {[%clk 0:00:07]}  Rd3+ {[%clk 0:00:06]} 45. Kf2 {[%clk 0:00:07]}  f4 {[%clk 0:00:07]} 46. Ke2 {[%clk 0:00:07]}  Rd6 {[%clk 0:00:08]} 47. b4 {[%clk 0:00:05]}  axb4 {[%clk 0:00:08]} 48. axb4 {[%clk 0:00:06]}  b5 {[%clk 0:00:08]} 49. Kf3 {[%clk 0:00:07]}  Kf5 {[%clk 0:00:08]} 50. h4 {[%clk 0:00:06]}  Rd3+ {[%clk 0:00:08]} 51. Ke2 {[%clk 0:00:07]}  Rd4 {[%clk 0:00:08]} 52. Kf3 {[%clk 0:00:06]}  Rd6 {[%clk 0:00:08]} 53. g4+ {[%clk 0:00:06]}  fxg3 {[%clk 0:00:08]} 54. Kxg3 {[%clk 0:00:07]}  Rd3+ {[%clk 0:00:09]} 55. Kf2 {[%clk 0:00:07]}  Rd6 {[%clk 0:00:04]} 56. Ke3 {[%clk 0:00:08]}  g5 {[%clk 0:00:04]} 57. h5 {[%clk 0:00:08]}  g4 {[%clk 0:00:02]} 58. h6 {[%clk 0:00:08]}  g3 {[%clk 0:00:03]} 59. h7 {[%clk 0:00:08]}  g2 {[%clk 0:00:02]} 60. Kf2 {[%clk 0:00:09]}  Rd2+ {[%clk 0:00:03]} 61. Kg1 {[%clk 0:00:09]}  Kf4 {[%clk 0:00:01]} 62. h8=Q {[%clk 0:00:09]}  Kf3 {[%clk 0:00:02]} 63. Qh3+ {[%clk 0:00:09]}  Kf4 {[%clk 0:00:03]} 64. Qh6+ {[%clk 0:00:10]}  Kf5 {[%clk 0:00:03]} 65. Qxd2 {[%clk 0:00:11]} 1-0


[Site "https://www.chess.com"]

[Event "Titled Tuesday Blitz April 12 Early 2022"]
[White "Avazkhonov, Alikhon"]
[Black "Kouskoutis, Georgios-Alexandros"]
[WhiteFideId "14208504"]
[BlackFideId "4234049"]
[WhiteElo "1739"]
[BlackElo "2130"]
[Result "1-0"]
[Round "04"]
[TimeControl "180+1"]
[Date "2022.04.13"]
[WhiteClock "0:00:02"]
[BlackClock "0:00:02"]

1. f4 {[%clk 0:03:00]}  Nf6 {[%clk 0:02:54]} 2. Nf3 {[%clk 0:03:01]}  g6 {[%clk 0:02:53]} 3. g3 {[%clk 0:03:01]}  Bg7 {[%clk 0:02:54]} 4. Bg2 {[%clk 0:03:02]}  O-O {[%clk 0:02:47]} 5. O-O {[%clk 0:03:03]}  c5 {[%clk 0:02:47]} 6. d3 {[%clk 0:03:03]}  Nc6 {[%clk 0:02:46]} 7. e4 {[%clk 0:03:03]}  d6 {[%clk 0:02:47]} 8. Nc3 {[%clk 0:03:02]}  Bg4 {[%clk 0:02:39]} 9. h3 {[%clk 0:03:01]}  Bxf3 {[%clk 0:02:30]} 10. Qxf3 {[%clk 0:03:01]}  Rb8 {[%clk 0:02:30]} 11. g4 {[%clk 0:02:53]}  Nd4 {[%clk 0:02:10]} 12. Qf2 {[%clk 0:02:51]}  b5 {[%clk 0:02:10]} 13. g5 {[%clk 0:02:05]}  Nd7 {[%clk 0:02:06]} 14. f5 {[%clk 0:02:01]}  Be5 {[%clk 0:01:23]} 15. Nd5 {[%clk 0:01:43]}  e6 {[%clk 0:01:11]} 16. Ne3 {[%clk 0:01:32]}  b4 {[%clk 0:00:52]} 17. f6 {[%clk 0:01:18]}  h5 {[%clk 0:00:42]} 18. Nc4 {[%clk 0:01:05]}  Bg3 {[%clk 0:00:24]} 19. Qd2 {[%clk 0:00:47]}  Nb6 {[%clk 0:00:23]} 20. c3 {[%clk 0:00:34]}  bxc3 {[%clk 0:00:22]} 21. bxc3 {[%clk 0:00:34]}  Nxc4 {[%clk 0:00:19]} 22. dxc4 {[%clk 0:00:34]}  Nc6 {[%clk 0:00:19]} 23. Qe2 {[%clk 0:00:24]}  Ne5 {[%clk 0:00:08]} 24. Bf4 {[%clk 0:00:23]}  Bxf4 {[%clk 0:00:08]} 25. Rxf4 {[%clk 0:00:24]}  Kh7 {[%clk 0:00:08]} 26. Rd1 {[%clk 0:00:16]}  Rh8 {[%clk 0:00:07]} 27. Bf1 {[%clk 0:00:08]}  Qc7 {[%clk 0:00:07]} 28. Qd2 {[%clk 0:00:09]}  Rb6 {[%clk 0:00:05]} 29. Be2 {[%clk 0:00:09]}  Kg8 {[%clk 0:00:03]} 30. Rc1 {[%clk 0:00:08]}  Kf8 {[%clk 0:00:03]} 31. Qd1 {[%clk 0:00:07]}  Ke8 {[%clk 0:00:03]} 32. Rc2 {[%clk 0:00:07]}  Kd7 {[%clk 0:00:03]} 33. Qc1 {[%clk 0:00:06]}  Kc8 {[%clk 0:00:03]} 34. h4 {[%clk 0:00:05]}  Kb8 {[%clk 0:00:04]} 35. Rb2 {[%clk 0:00:04]}  Ka8 {[%clk 0:00:04]} 36. Rf1 {[%clk 0:00:03]}  Rhb8 {[%clk 0:00:03]} 37. Rxb6 {[%clk 0:00:03]}  Rxb6 {[%clk 0:00:03]} 38. Qc2 {[%clk 0:00:03]}  Qb7 {[%clk 0:00:03]} 39. Qa4 {[%clk 0:00:02]}  Qc6 {[%clk 0:00:02]} 40. Qa5 {[%clk 0:00:01]}  Qxe4 {[%clk 0:00:02]} 41. Bd1 {[%clk 0:00:01]}  Qe3+ {[%clk 0:00:01]} 42. Kh1 {[%clk 0:00:01]}  Qh3+ {[%clk 0:00:01]} 43. Kg1 {[%clk 0:00:01]}  Qg3+ {[%clk 0:00:02]} 44. Kh1 {[%clk 0:00:02]}  Qxh4+ {[%clk 0:00:03]} 45. Kg2 {[%clk 0:00:01]}  Qxg5+ {[%clk 0:00:03]} 46. Kh2 {[%clk 0:00:02]}  Qd2+ {[%clk 0:00:03]} 47. Kg1 {[%clk 0:00:02]}  Qe3+ {[%clk 0:00:03]} 48. Kh1 {[%clk 0:00:02]}  Qe4+ {[%clk 0:00:02]} 49. Kg1 {[%clk 0:00:03]}  Qe3+ {[%clk 0:00:02]} 50. Kh1 {[%clk 0:00:02]}  Nxc4 {[%clk 0:00:02]} 51. Qa4 {[%clk 0:00:01]}  Qe4+ {[%clk 0:00:01]} 52. Kg1 {[%clk 0:00:01]}  Qe3+ {[%clk 0:00:01]} 53. Kh1 {[%clk 0:00:02]}  d5 {[%clk 0:00:02]} 54. Qe8+ {[%clk 0:00:01]}  Rb8 {[%clk 0:00:02]} 55. Qc6+ {[%clk 0:00:01]}  Rb7 {[%clk 0:00:01]} 56. Qc8+ {[%clk 0:00:02]}  Rb8 {[%clk 0:00:01]} 57. Qc6+ {[%clk 0:00:02]}  Rb7 {[%clk 0:00:02]} 58. Ba4 {[%clk 0:00:02]}  Nb6 {[%clk 0:00:02]} 59. Qe8+ {[%clk 0:00:02]} 1-0


[Site "https://www.chess.com"]

[Event "Titled Tuesday Blitz April 12 Early 2022"]
[White "Bach, Ngoc Thuy Duong"]
[Black "Csonka, Balazs"]
[WhiteFideId "12408956"]
[BlackFideId "742910"]
[WhiteElo "1862"]
[BlackElo "2404"]
[Result "0-1"]
[Round "04"]
[TimeControl "180+1"]
[Date "2022.04.13"]
[WhiteClock "0:00:28"]
[BlackClock "0:01:30"]

1. d4 {[%clk 0:03:00]}  Nf6 {[%clk 0:02:59]} 2. c4 {[%clk 0:03:00]}  e6 {[%clk 0:02:59]} 3. Nc3 {[%clk 0:03:01]}  d5 {[%clk 0:03:00]} 4. cxd5 {[%clk 0:03:01]}  Nxd5 {[%clk 0:03:00]} 5. Bg5 {[%clk 0:03:02]}  Qxg5 {[%clk 0:02:59]} 6. e4 {[%clk 0:03:00]}  Nxc3 {[%clk 0:02:52]} 7. bxc3 {[%clk 0:03:00]}  Qa5 {[%clk 0:02:52]} 8. Qd2 {[%clk 0:02:48]}  c5 {[%clk 0:02:52]} 9. d5 {[%clk 0:02:49]}  exd5 {[%clk 0:02:49]} 10. exd5 {[%clk 0:02:49]}  Bd6 {[%clk 0:02:49]} 11. Nf3 {[%clk 0:02:49]}  O-O {[%clk 0:02:44]} 12. Be2 {[%clk 0:02:50]}  Nd7 {[%clk 0:02:43]} 13. O-O {[%clk 0:02:49]}  Nf6 {[%clk 0:02:43]} 14. Qd3 {[%clk 0:02:32]}  Bg4 {[%clk 0:02:39]} 15. Rfe1 {[%clk 0:02:01]}  Rfe8 {[%clk 0:02:28]} 16. h3 {[%clk 0:01:58]}  Bh5 {[%clk 0:02:26]} 17. c4 {[%clk 0:01:32]}  Bg6 {[%clk 0:02:22]} 18. Qb3 {[%clk 0:01:29]}  Qb4 {[%clk 0:02:21]} 19. Qd1 {[%clk 0:01:15]}  b6 {[%clk 0:02:06]} 20. Nh4 {[%clk 0:01:13]}  Be4 {[%clk 0:01:58]} 21. Qc1 {[%clk 0:01:00]}  Be5 {[%clk 0:01:51]} 22. a3 {[%clk 0:01:00]}  Qc3 {[%clk 0:01:48]} 23. Bf3 {[%clk 0:00:51]}  Bxf3 {[%clk 0:01:37]} 24. Nxf3 {[%clk 0:00:46]}  Qxa1 {[%clk 0:01:37]} 25. Qg5 {[%clk 0:00:29]}  Bh2+ {[%clk 0:01:30]} 26. Kxh2 {[%clk 0:00:28]}  Rxe1 {[%clk 0:01:30]} 0-1


[Site "https://www.chess.com"]

[Event "Titled Tuesday Blitz April 12 Early 2022"]
[White "Baches Garcia, Guillermo"]
[Black "Sanchez, Robert"]
[WhiteFideId "2209764"]
[BlackFideId "2034360"]
[WhiteElo "2489"]
[BlackElo "2358"]
[Result "0-1"]
[Round "04"]
[TimeControl "180+1"]
[Date "2022.04.13"]
[WhiteClock "0:00:11"]
[BlackClock "0:00:21"]

1. e4 {[%clk 0:03:00]}  e6 {[%clk 0:03:00]} 2. Nf3 {[%clk 0:03:00]}  c5 {[%clk 0:03:00]} 3. c4 {[%clk 0:03:00]}  Nc6 {[%clk 0:03:00]} 4. Nc3 {[%clk 0:03:00]}  d6 {[%clk 0:03:01]} 5. d4 {[%clk 0:02:59]}  cxd4 {[%clk 0:03:02]} 6. Nxd4 {[%clk 0:03:00]}  Nf6 {[%clk 0:03:03]} 7. Be2 {[%clk 0:03:00]}  Be7 {[%clk 0:03:03]} 8. O-O {[%clk 0:03:00]}  O-O {[%clk 0:03:04]} 9. Be3 {[%clk 0:02:59]}  Bd7 {[%clk 0:03:02]} 10. Qd2 {[%clk 0:02:56]}  Ne5 {[%clk 0:03:02]} 11. f3 {[%clk 0:02:51]}  Rc8 {[%clk 0:03:01]} 12. b3 {[%clk 0:02:51]}  a6 {[%clk 0:03:01]} 13. Rac1 {[%clk 0:02:50]}  Re8 {[%clk 0:02:58]} 14. Rfd1 {[%clk 0:02:50]}  Bf8 {[%clk 0:02:58]} 15. Bf1 {[%clk 0:02:46]}  Qc7 {[%clk 0:02:56]} 16. Qf2 {[%clk 0:02:44]}  Qb8 {[%clk 0:02:55]} 17. h3 {[%clk 0:02:39]}  d5 {[%clk 0:02:46]} 18. f4 {[%clk 0:02:27]}  Ng6 {[%clk 0:02:35]} 19. e5 {[%clk 0:02:22]}  Ne4 {[%clk 0:02:35]} 20. Nxe4 {[%clk 0:02:20]}  dxe4 {[%clk 0:02:36]} 21. Ne2 {[%clk 0:02:06]}  Bc6 {[%clk 0:02:36]} 22. Ba7 {[%clk 0:02:00]}  Qa8 {[%clk 0:02:29]} 23. Bb6 {[%clk 0:02:00]}  a5 {[%clk 0:02:21]} 24. Nc3 {[%clk 0:01:55]}  Ba3 {[%clk 0:02:16]} 25. Rc2 {[%clk 0:01:53]}  Bb4 {[%clk 0:02:15]} 26. Qe3 {[%clk 0:01:47]}  Ne7 {[%clk 0:02:11]} 27. Nxe4 {[%clk 0:01:43]}  Nf5 {[%clk 0:02:10]} 28. Qe2 {[%clk 0:01:36]}  Qa6 {[%clk 0:02:03]} 29. Bf2 {[%clk 0:01:21]}  Rcd8 {[%clk 0:01:46]} 30. Rcc1 {[%clk 0:01:05]}  Ba3 {[%clk 0:01:43]} 31. Rb1 {[%clk 0:01:04]}  h5 {[%clk 0:01:21]} 32. g4 {[%clk 0:01:01]}  hxg4 {[%clk 0:01:22]} 33. hxg4 {[%clk 0:01:02]}  Bxe4 {[%clk 0:01:22]} 34. Qxe4 {[%clk 0:00:58]}  Ne7 {[%clk 0:01:22]} 35. c5 {[%clk 0:00:50]}  Qa8 {[%clk 0:01:20]} 36. Bd3 {[%clk 0:00:48]}  g6 {[%clk 0:01:18]} 37. Kg2 {[%clk 0:00:46]}  Nd5 {[%clk 0:01:04]} 38. Rh1 {[%clk 0:00:34]}  b5 {[%clk 0:01:03]} 39. Kg3 {[%clk 0:00:20]}  Nc3 {[%clk 0:00:52]} 40. Qxa8 {[%clk 0:00:18]}  Rxa8 {[%clk 0:00:52]} 41. Rbe1 {[%clk 0:00:18]}  Rad8 {[%clk 0:00:51]} 42. Be4 {[%clk 0:00:16]}  Nxe4+ {[%clk 0:00:48]} 43. Rxe4 {[%clk 0:00:16]}  Rd5 {[%clk 0:00:49]} 44. c6 {[%clk 0:00:11]}  Rc8 {[%clk 0:00:49]} 45. Re3 {[%clk 0:00:11]}  Rxc6 {[%clk 0:00:47]} 46. Kg2 {[%clk 0:00:12]}  Rc2 {[%clk 0:00:46]} 47. Reh3 {[%clk 0:00:12]}  Kf8 {[%clk 0:00:30]} 48. Rh8+ {[%clk 0:00:12]}  Ke7 {[%clk 0:00:30]} 49. Ra8 {[%clk 0:00:13]}  Bc5 {[%clk 0:00:22]} 50. Rhh8 {[%clk 0:00:11]}  Rxf2+ {[%clk 0:00:21]} 51. Kg3 {[%clk 0:00:10]}  Rd3+ {[%clk 0:00:21]} 52. Kh4 {[%clk 0:00:11]}  Rh2+ {[%clk 0:00:21]} 0-1


[Site "https://www.chess.com"]

[Event "Titled Tuesday Blitz April 12 Early 2022"]
[White "Barria Zuniga, Daniel"]
[Black "Bowden, Karl"]
[WhiteFideId "3400816"]
[BlackFideId "400548"]
[WhiteElo "2414"]
[BlackElo "2354"]
[Result "1-0"]
[Round "04"]
[TimeControl "180+1"]
[Date "2022.04.13"]
[WhiteClock "0:00:21"]
[BlackClock "0:00:09"]

1. d4 {[%clk 0:02:50]}  Nf6 {[%clk 0:02:59]} 2. c4 {[%clk 0:02:49]}  c5 {[%clk 0:02:57]} 3. d5 {[%clk 0:02:49]}  Ne4 {[%clk 0:02:57]} 4. Nd2 {[%clk 0:02:42]}  Qa5 {[%clk 0:02:55]} 5. f3 {[%clk 0:02:41]}  Nd6 {[%clk 0:02:54]} 6. e4 {[%clk 0:02:40]}  g6 {[%clk 0:02:54]} 7. Bd3 {[%clk 0:02:38]}  Bg7 {[%clk 0:02:54]} 8. Ne2 {[%clk 0:02:38]}  O-O {[%clk 0:02:53]} 9. O-O {[%clk 0:02:39]}  e5 {[%clk 0:02:45]} 10. Kh1 {[%clk 0:02:32]}  b5 {[%clk 0:02:29]} 11. cxb5 {[%clk 0:02:27]}  Nxb5 {[%clk 0:02:29]} 12. Nc4 {[%clk 0:02:18]}  Qc7 {[%clk 0:02:04]} 13. f4 {[%clk 0:02:16]}  d6 {[%clk 0:01:38]} 14. fxe5 {[%clk 0:02:10]}  dxe5 {[%clk 0:01:37]} 15. Be3 {[%clk 0:01:36]}  Nd4 {[%clk 0:01:31]} 16. Rc1 {[%clk 0:01:36]}  Bg4 {[%clk 0:01:21]} 17. h3 {[%clk 0:01:32]}  Bxe2 {[%clk 0:01:19]} 18. Bxe2 {[%clk 0:01:33]}  Nd7 {[%clk 0:01:16]} 19. b3 {[%clk 0:01:25]}  Qd8 {[%clk 0:01:11]} 20. Bd3 {[%clk 0:01:22]}  Nb6 {[%clk 0:00:50]} 21. Qd2 {[%clk 0:01:12]}  Nc8 {[%clk 0:00:32]} 22. Nb2 {[%clk 0:01:07]}  Qe7 {[%clk 0:00:30]} 23. Na4 {[%clk 0:01:06]}  Nd6 {[%clk 0:00:28]} 24. Nxc5 {[%clk 0:01:04]}  Rac8 {[%clk 0:00:28]} 25. b4 {[%clk 0:01:03]}  f5 {[%clk 0:00:24]} 26. a3 {[%clk 0:01:03]}  f4 {[%clk 0:00:22]} 27. Bxd4 {[%clk 0:00:58]}  exd4 {[%clk 0:00:22]} 28. Ne6 {[%clk 0:00:57]}  Be5 {[%clk 0:00:21]} 29. Nxf8 {[%clk 0:00:48]}  Rxf8 {[%clk 0:00:21]} 30. Qe2 {[%clk 0:00:43]}  Qh4 {[%clk 0:00:19]} 31. Qg4 {[%clk 0:00:42]}  Qh6 {[%clk 0:00:19]} 32. Qe6+ {[%clk 0:00:41]}  Nf7 {[%clk 0:00:19]} 33. b5 {[%clk 0:00:35]}  f3 {[%clk 0:00:19]} 34. gxf3 {[%clk 0:00:31]}  Qd2 {[%clk 0:00:15]} 35. f4 {[%clk 0:00:28]}  Qxd3 {[%clk 0:00:13]} 36. fxe5 {[%clk 0:00:28]}  Qxe4+ {[%clk 0:00:14]} 37. Kg1 {[%clk 0:00:25]}  Qe3+ {[%clk 0:00:14]} 38. Kg2 {[%clk 0:00:25]}  Qe4+ {[%clk 0:00:14]} 39. Rf3 {[%clk 0:00:23]}  Kg7 {[%clk 0:00:14]} 40. Rc7 {[%clk 0:00:22]}  Qe2+ {[%clk 0:00:11]} 41. Rf2 {[%clk 0:00:21]}  Qe4+ {[%clk 0:00:11]} 42. Kh2 {[%clk 0:00:20]}  Kh6 {[%clk 0:00:09]} 43. Rcxf7 {[%clk 0:00:20]}  Rxf7 {[%clk 0:00:09]} 44. Qxf7 {[%clk 0:00:21]}  Qxe5+ {[%clk 0:00:09]} 45. Qf4+ {[%clk 0:00:21]} 1-0


[Site "https://www.chess.com"]

[Event "Titled Tuesday Blitz April 12 Early 2022"]
[White "Bongo Akanga Ndjila, Barthelemy"]
[Black "Lamaze, Simon"]
[WhiteFideId "10609431"]
[BlackFideId "36069264"]
[WhiteElo "1768"]
[BlackElo "1999"]
[Result "0-1"]
[Round "04"]
[TimeControl "180+1"]
[Date "2022.04.13"]
[WhiteClock "0:01:10"]
[BlackClock "0:02:20"]

1. d4 {[%clk 0:02:52]}  Nf6 {[%clk 0:03:00]} 2. c4 {[%clk 0:02:47]}  e6 {[%clk 0:03:00]} 3. Nc3 {[%clk 0:02:45]}  Bb4 {[%clk 0:03:00]} 4. a3 {[%clk 0:02:42]}  Bxc3+ {[%clk 0:02:59]} 5. bxc3 {[%clk 0:02:43]}  c5 {[%clk 0:02:59]} 6. f3 {[%clk 0:02:41]}  Nc6 {[%clk 0:02:54]} 7. e4 {[%clk 0:02:38]}  d6 {[%clk 0:02:55]} 8. Ne2 {[%clk 0:02:34]}  O-O {[%clk 0:02:54]} 9. d5 {[%clk 0:02:34]}  Na5 {[%clk 0:02:54]} 10. Ng3 {[%clk 0:02:33]}  Nd7 {[%clk 0:02:54]} 11. Bd3 {[%clk 0:02:33]}  Ne5 {[%clk 0:02:54]} 12. Qe2 {[%clk 0:02:29]}  Nxd3+ {[%clk 0:02:53]} 13. Qxd3 {[%clk 0:02:28]}  e5 {[%clk 0:02:53]} 14. O-O {[%clk 0:02:25]}  b6 {[%clk 0:02:52]} 15. Nf5 {[%clk 0:02:24]}  Bxf5 {[%clk 0:02:51]} 16. exf5 {[%clk 0:02:24]}  f6 {[%clk 0:02:51]} 17. g4 {[%clk 0:02:22]}  Qd7 {[%clk 0:02:51]} 18. a4 {[%clk 0:02:17]}  Qb7 {[%clk 0:02:49]} 19. Rb1 {[%clk 0:02:06]}  Qa6 {[%clk 0:02:47]} 20. Rb5 {[%clk 0:02:06]}  Nb7 {[%clk 0:02:48]} 21. Qc2 {[%clk 0:02:00]}  Na5 {[%clk 0:02:48]} 22. Qd3 {[%clk 0:01:58]}  Rae8 {[%clk 0:02:47]} 23. Re1 {[%clk 0:01:55]}  Qc8 {[%clk 0:02:47]} 24. Re4 {[%clk 0:01:55]}  Kf7 {[%clk 0:02:43]} 25. h4 {[%clk 0:01:46]}  g6 {[%clk 0:02:42]} 26. fxg6+ {[%clk 0:01:44]}  hxg6 {[%clk 0:02:43]} 27. Kg2 {[%clk 0:01:41]}  f5 {[%clk 0:02:42]} 28. Re2 {[%clk 0:01:36]}  f4 {[%clk 0:02:34]} 29. Bd2 {[%clk 0:01:25]}  Rh8 {[%clk 0:02:32]} 30. Be1 {[%clk 0:01:26]}  Rh6 {[%clk 0:02:31]} 31. Re4 {[%clk 0:01:25]}  Reh8 {[%clk 0:02:29]} 32. g5 {[%clk 0:01:25]}  Rxh4 {[%clk 0:02:29]} 33. Bxh4 {[%clk 0:01:24]}  Rxh4 {[%clk 0:02:30]} 34. Kf2 {[%clk 0:01:14]}  Rh2+ {[%clk 0:02:28]} 35. Ke1 {[%clk 0:01:13]}  Qh3 {[%clk 0:02:28]} 36. Re2 {[%clk 0:01:12]}  Qg3+ {[%clk 0:02:27]} 37. Kd2 {[%clk 0:01:12]}  Rxe2+ {[%clk 0:02:23]} 38. Qxe2 {[%clk 0:01:11]}  Qg1 {[%clk 0:02:22]} 39. Rb1 {[%clk 0:01:10]}  Qxb1 {[%clk 0:02:20]} 0-1


[Site "https://www.chess.com"]